Cogmind - Beta 11.1 @@@ ROGUE MODE // 2022.05.16 @ 10:23:13 Player: Sara Result: Destroyed by G-47 Trooper with Particle Gun Performance ------------- Evolutions (0) 0 Regions Visited (2) 400 Robots Destroyed (9) 45 Value Destroyed (66) 66 Prototype IDs (0) 0 Alien Tech Used (0) 0 Bonus (14) 14 TOTAL SCORE: 525 Bonus ------- Follower Combat Kills 14 Cogmind --------- Core Integrity 0/250 Matter 227/300 Energy 99/100 System Corruption 6% Temperature Cool (9) Movement Core (50) Location -10/Mines Parts ------- > --- POWER (1) -------- (None) > --- PROPULSION (2) --- (None) > --- UTILITY (2) ------ Sensor Array ECM Suite > --- WEAPON (2) ------- (None) > --- INVENTORY (5) ---- Ion Engine Improved Terrain Scanner Seismic Detector Medium Laser Medium Laser Peak State ------------ > --- POWER ------------ (None) > --- PROPULSION ------- (None) > --- UTILITY ---------- Improved Terrain Scanner Seismic Detector > --- WEAPON ----------- Assault Rifle > --- INVENTORY -------- Ion Engine Medium Laser Medium Laser [Rating: 5] Favorites ----------- Power None Propulsion None Utility Seismic Detector Device Seismic Detector Weapon Assault Rifle Energy Gun Medium Laser Ballistic Gun Assault Rifle Build | -11 -10 -10 ------- Run | Scr Mat Min Slots Evolved . | . . . Power . | . . . Propulsion . | . . . Utility . | . . . Weapon . | . . . Parts Attached 10 | 3 3 4 Power . | . . . Engine . | . . . Core . | . . . Reactor . | . . . Propulsion . | . . . Treads . | . . . Leg . | . . . Wheel . | . . . Hover . | . . . Flight . | . . . Utility 4 | 2 . 2 Device 4 | 2 . 2 Storage . | . . . Processor . | . . . Hackware . | . . . Protection . | . . . Artifact . | . . . Weapon 6 | 1 3 2 Energy Gun 5 | . 3 2 Energy Cannon . | . . . Ballistic Gun 1 | 1 . . Ballistic Cannon . | . . . Launcher . | . . . Special Weapon . | . . . Impact Weapon . | . . . Slashing Weapon . | . . . Piercing Weapon . | . . . Special Melee Weapon . | . . . Unidentified Prototypes . | . . . Parts Lost . | . . . Power . | . . . Propulsion . | . . . Utility . | . . . Weapon . | . . . Highest Loss Streak . | . . . To Critical Strikes . | . . . Average Slot Usage (%) 30 | . 34 28 Device 20 | . 14 26 Energy Gun 3 | . 6 1 Ballistic Gun 6 | . 14 1 Naked Turns . | . . . Heaviest Build 5 | 4 5 5 Greatest Support 3 | 3 3 3 Greatest Overweight (x) 1 | 1 1 1 Average Overweight (x) . | . . . Largest Inventory Capacity 5 | 5 5 5 Average Capacity 5 | 5 5 5 Most Carried 5 | 4 4 5 Average Carried 3 | 2 3 4 Final Capacity 5 | 5 5 5 Final Carried 5 | 3 4 5 Class Distribution -------------------- 100% | Mutant Dominant Class ---------------- Mutant | -10/Materials Mutant | -10/Mines Resources | -11 -10 -10 ----------- Run | Scr Mat Min Matter Collected 317 | 201 12 104 Remotely . | . . . Salvage Created 244 | 117 98 29 Parts 20 | 10 8 2 Haulers Intercepted 1 | . 1 . Recyclers Shooed . | . . . Parts Field Recycled . | . . . Retrieved Matter . | . . . Parts Self-Destructed . | . . . Prevented . | . . . Kills | -11 -10 -10 ------- Run | Scr Mat Min Combat Hostiles Destroyed 3 | . 3 . Guns 3 | . 3 . Classes Destroyed 4 | 2 2 . Tunneler 4 | 3 . 1 Hauler 1 | . 1 . Recycler 1 | 1 . . Swarmer 3 | . 3 . Best Kill Streak 4 | 4 2 1 Combat Bots Only 2 | . 2 . Max Kills in Single Turn 1 | 1 1 1 Gunslinging . | . . . Exploded . | . . . Melee . | . . . Uniques/NPCs Destroyed . | . . . Combat | -11 -10 -10 -------- Run | Scr Mat Min Damage Taken 437 | . 317 120 Core 263 | . 149 114 Absorbed by Shields . | . . . Core Remaining (%) 100 | 100 . . Volleys Fired 30 | 16 12 2 Largest 2 | 1 2 1 Hottest 70 | 20 70 50 Shots Fired 43 | 16 25 2 Gun 43 | 16 25 2 Cannon . | . . . Launcher . | . . . Special . | . . . Kinetic 29 | 16 13 . Thermal 14 | . 12 2 Explosive . | . . . Electromagnetic . | . . . Robot Hit Streak 7 | 4 7 7 Robot Miss Streak 3 | 2 3 1 Penetration Max . | . . . Secondary Targets . | . . . Shots Hit Robots 28 | 10 17 1 Core Hits 12 | 5 6 1 Critical Kills . | . . . Critical Parts Destroyed . | . . . Critical Strikes . | . . . Melee Attacks . | . . . Impact . | . . . Slashing . | . . . Piercing . | . . . Sneak Attacks . | . . . Combat Hostiles . | . . . Follow-up Attacks . | . . . Damage Inflicted 357 | 119 220 18 Guns 347 | 119 215 13 Cannons . | . . . Explosions . | . . . Melee . | . . . Ramming 10 | . 5 5 Kinetic 247 | 119 128 . Thermal 100 | . 87 13 Explosive . | . . . Electromagnetic . | . . . Impact . | . . . Slashing . | . . . Piercing . | . . . Highest Corruption 6 | . 6 6 Average Corruption 5 | . 5 6 Corruption Purged . | . . . Corruption Blocked . | . . . Effects 6 | . 1 5 Message Errors 2 | . . 2 Matter Fused 1 | . . 1 Heat Flow Errors 1 | . . 1 Data Loss (major) 1 | . . 1 Misfires 1 | . 1 . Overload Shots . | . . . Overflow Damage . | . . . Projectiles . | . . . Explosions . | . . . Melee . | . . . Knockbacks . | . . . Impact . | . . . Kinetic . | . . . Secondary . | . . . Self-Inflicted Damage 4 | . 2 2 Shots . | . . . Rammed 2 | . 1 1 Targets Rammed 2 | . 1 1 Kicked . | . . . Crushed . | . . . Highest Temperature 174 | . 51 174 Average Temperature 42 | . 23 99 Received Heat Transfer 126 | . 96 30 Siege Activations . | . . . Robots Corrupted . | . . . Combat Hostiles . | . . . Parts Fried . | . . . Impact Corruptions . | . . . Robots Melted . | . . . Combat Hostiles . | . . . Parts Melted . | . . . Heat Transferred 296 | . 259 37 Parts Sabotaged . | . . . Parts Stolen . | . . . Parts Stripped . | . . . Power Chain Reactions . | . . . Missiles Intercepted . | . . . Alert | -11 -10 -10 ------- Run | Scr Mat Min Peak Influence 126 | 20 126 89 Initial 48 | . 13 48 Average 54 | 7 86 55 Maximum Alert Level . | . . . Low Security (%) 100 | 100 100 100 Level 1 . | . . . Level 2 . | . . . Level 3 . | . . . Level 4 . | . . . Level 5 . | . . . High Security . | . . . Max Security . | . . . Squads Dispatched . | . . . Investigation . | . . . Extermination . | . . . Reinforcement . | . . . Assault . | . . . Garrison . | . . . Intercept . | . . . Searches Triggered . | . . . Construction Impeded . | . . . Haulers Reinforced . | . . . Active Scanning Responses . | . . . Cargo Convoy Interrupts . | . . . Stealth | -11 -10 -10 --------- Run | Scr Mat Min Distress Signals 1 | . 1 . Communications Jammed . | . . . Distress Signals . | . . . Times Spotted 12 | . 7 5 Peak Tracking Total 5 | . 4 5 Tactical Retreats 1 | . 1 . Traps | -11 -10 -10 ------- Run | Scr Mat Min Traps Triggered 3 | . 3 . Indirectly . | . . . Trap Hack Attempts . | . . . Triggered . | . . . Disarmed . | . . . Reprogrammed . | . . . Reused . | . . . Traps Extracted . | . . . Installed . | . . . Triggered . | . . . Machines | -11 -10 -10 ---------- Run | Scr Mat Min Machines Disabled . | . . . Max in Single Turn . | . . . Machines Sabotaged . | . . . Garrisons Compromised . | . . . Overloaded Fab Kills . | . . . Hacking | -11 -10 -10 --------- Run | Scr Mat Min Machines Accessed 1 | . 1 . Terminals 1 | . 1 . Fabricators . | . . . Repair Stations . | . . . Recycling Units . | . . . Scanalyzers . | . . . Garrison Access . | . . . Total Hacks 2 | . 2 . Successful 2 | . 2 . Failed . | . . . Catastrophic . | . . . Database Lockouts . | . . . Manual 1 | . 1 . Terminals 2 | . 2 . Fabricators . | . . . Repair Stations . | . . . Recycling Units . | . . . Scanalyzers . | . . . Garrison Access . | . . . Terminal Hacks 2 | . 2 . Transport Status 1 | . 1 . Hauler Manifests 1 | . 1 . Fabricator Hacks . | . . . Repair Station Hacks . | . . . Recycling Unit Hacks . | . . . Scanalyzer . | . . . Garrison Access Hacks . | . . . Unauthorized Hacks . | . . . Terminals . | . . . Fabricators . | . . . Repair Stations . | . . . Recycling Units . | . . . Scanalyzers . | . . . Garrison Access . | . . . Data Cores Recovered . | . . . Used . | . . . Hacking Detections 1 | . 1 . Full Trace Events . | . . . Feedback Events . | . . . Feedback Blocked . | . . . Robot Schematics Acquired . | . . . Robots Built . | . . . Authchips . | . . . Time . | . . . Total Robot Build Rating . | . . . Part Schematics Acquired . | . . . Parts Built . | . . . Authchips . | . . . Time . | . . . Total Part Build Rating . | . . . Parts Repaired . | . . . Time . | . . . Parts Recycled . | . . . Recycled Matter . | . . . Retrieved Matter . | . . . Retrieved Components . | . . . Parts Scanalyzed . | . . . Part Schematics Acquired . | . . . Parts Damaged . | . . . Bothacking | -11 -10 -10 ------------ Run | Scr Mat Min Used RIF Installer . | . . . Robots Hacked . | . . . Non-combat . | . . . Combat . | . . . Robot Hacks Applied . | . . . Relay Couplers Released . | . . . Fabnet Peak Effective % . | . . . Robots Rewired . | . . . Allies Hacked . | . . . Hacks Repelled . | . . . Allies | -11 -10 -10 -------- Run | Scr Mat Min Total Allies 2 | . . 2 Largest Group 2 | . . 2 Highest-Rated Group 43 | . . 43 Highest-Rated Ally 31 | . . 31 Total Orders . | . . . Ally Attacks 7 | . . 7 Total Damage 85 | . . 85 Kills 2 | . . 2 Allies Corrupted . | . . . Allies Melted . | . . . Intel | -11 -10 -10 ------- Run | Scr Mat Min Robot Analysis Total . | . . . Derelict Logs Recovered . | . . . Drone Launches . | . . . Drone Recoveries . | . . . Exploration | -11 -10 -10 ------------- Run | Scr Mat Min Turns Passed 329 | 82 112 135 Spaces Moved 362 | 65 118 179 Core 362 | 65 118 179 Treads . | . . . Legs . | . . . Wheels . | . . . Hover . | . . . Flight . | . . . Fastest Speed 50 | 50 50 50 Average Speed 52 | 57 52 50 Slowest Speed 100 | 100 100 100 Overloaded Moves . | . . . Propulsion Burnouts . | . . . Robots Hopped . | . . . Cave-ins Triggered . | . . . Exploration Rate (%) 21 | 4 26 34 Regions Visited 2 Branch Regions 1 Pre-discovered Areas . | . . . Known Exits Taken . | . . . Unknown Exits Taken 2 | 1 1 . Scrap Searched 2 | . . 2 Spaces Dug . | . . . Terrain Destroyed . | . . . Melee . | . . . Projectile . | . . . AOE . | . . . Terrain Rammed . | . . . Walls Destroyed . | . . . Machines Disabled . | . . . Actions | -11 -10 -10 --------- Run | Scr Mat Min Total 459 | 92 145 222 Wait 44 | 5 8 31 Move 360 | 64 117 179 Hop . | . . . Pick Up 5 | 4 . 1 Fast Attach 4 | 2 . 2 Attach 6 | 1 3 2 Detach 6 | . 4 2 Swap . | . . . Drop 2 | . . 2 Fire 30 | 16 12 2 Melee . | . . . Ram 2 | . 1 1 Kick . | . . . Crush . | . . . Escape Stasis . | . . . Rewire . | . . . Trap . | . . . Miscellaneous . | . . . Route ------- -11/Scrapyard -10/Materials (discovered 3 exits: [*Mat] / [*Min x2]) -10/Mines (discovered 1 exit: [*Mat]) History --------- Turn | Location | Event 3 | -11/Scrapyard | Discovered new exit (range 15) 83 | -11/Scrapyard | Entered Materials 128 | -10/Materials | Discovered new exit (range 12) 171 | -10/Materials | Core integrity fell below 50% 188 | -10/Materials | Discovered new exit (range 16) 192 | -10/Materials | Discovered new exit (range 13) 195 | -10/Materials | Entered Mines 246 | -10/Mines | Discovered new exit (range 10) 301 | -10/Mines | Build established: Mutant 327 | -10/Mines | Core integrity fell below 20% 330 | -10/Mines | Destroyed by G-47 Trooper with Particle Gun Last Messages --------------- 00219_ Acquired 29 matter. 00220_ Searching scrap... 00220_ Found ECM Suite. 00220_ Found Propulsion Shielding. 00220_ Found Terrain Scanner. 00220_ Found Lgt. Armor Plating. 00220_ Found 38 Matter. 00222_ Acquired ECM Suite. 00226_ Acquired 38 matter. 00231_ System corrupted: Matter fused (-10). 00243_ A pair of derelicts emerge from the shadows: "We're, um, lost. You wouldn't happen to know the way out of here, would you?" 00246_ EXIT=FOUND 00247_ K-01 Serf collects debris. 00255_ RDA5WMJ CH5|TLZ5CQSW 00288_ System corrupted: Heat flow error (+199). 00316_ MBWYO,9&YMH:U8TQPHJAM|7L 00325_ R-06 Scavenger collects Aluminum Leg. 00326_ Slammed into S-10 Pest. 00329_ R-06 Scavenger collects Mak. Leg. Map ----- +----------------------------------------------------+ | ??????????????????????????????????# ##???????? | | ??????????????????????????????????# ##???????? | | ??????????????????????????????????# #???????? | | ??????????????????????????????????# #???????? | | ??????????????????????????????????# ##??????? | | ??????????????????????????????????# #####??? | | ??????????????????????????????????# ##?? | | ??????????????????????????????????# #?? | | ??????????????????????????????????# #?? | | ??????????????????????????????????## #?? | | ?????????????????????????$ ????####### #?? | | ????????????????????????? ???## ##?## #?? | | ????????????????????????? t??## ##### ##?? | | ????????????????????????? ### ### ###??? | | ????????????????????????? ## ## #????? | | ????????????????????????# ## """ ## #????? | | ????????????????????????# ### """ #????? | | ????????????????????????# #?# """ #####????? | | ????????????????????????# #?# ##????????? | | ????????????????????????# #?# #?????????? | | ????????????????????????# #?# #?????????? | | ????????????????????????# #?## ##?????????? | | ????????????????????????# #?## ##??????????? | | ??????#######???????????# #?# #???????????? | | ?????? ?????????## #?# #???????????? | | ????????""" ######### @ #?## ##???????????? | | ????????""" ##?# #????????????? | | ????????""" r ### #????????????? | | ?????# ### ### % gg ## #????????????? | | ??? ""????????# ### s ## #????????????? | | ?????????????????# ## % [% #????????????? | | ?????????????????# ## ##########????????????? | | ?????????????????# ##?????????????????????? | | ?????????????????#######??????????????????????? | | ??????????????????????????????????????????????? | | ??????????????????????????????????????????????? | | ??????????????????????????????????????????????? | | | | | | | | | | | | | | | | | | | | | | | | | | | +----------------------------------------------------+ Best States ------------- Heat Dissipation 25 Energy Generation 5 Energy Capacity 100 Matter Stores 242 Matter Capacity 300 Sight Range 16 Robot Scan Range 14 Terrain Scan Range 16 Terrain Scan Density 10 Evasion (%) 50 Item Schematics ----------------- None Robot Schematics ------------------ None Fabricated ------------ Nothing Alien Tech Used ----------------- None Achievements -------------- None Challenges ------------ None Game ------ Seed FrostCatalystVibroblade Manual? 0 Play Time 00:07:24 Cumulative 104.9 hours Start 2022.05.16 @ 10:17:58 End 2022.05.16 @ 10:23:13 Sessions 1 Manual Loads 0 Difficulty Rogue Special Mode None Game No. 145 Rogue 145 Adventurer 0 Explorer 0 Win Type - Total 1 Types 1/0/0/0/0/0/0/0/0 Lore% 58 Gallery% 55 Achievement% 48 Wizard Run 0 Options --------- ASCII 0 Keyboard 0 Movement Numpad Keybinds 0 Fullscreen 1 Font 18/X11Bold Map View 76x50 Tactical HUD 1 Map Filters NONE Filters NONE Steam 1 RUN: e31cff73-e9f8-4fb2-94e4-e3bce8d9d843